bitfinex/quotes_SOLUSD_20240808
["timestamp","ask_amount","ask_price","bid_price","bid_amount"]
[1723096306783,21.97426043,153.04,152.93,6.1859]
[1723096307083,45.0,153.03,152.93,6.1859]
[1723096307461,45.0,153.03,152.94,0.17]
[1723096307870,390.73436367,153.06,152.94,0.17]
[1723096308047,390.73436367,153.06,152.94,45.17]
[1723096308252,390.73436367,153.06,152.95,0.17]
[1723096309253,45.0,153.05,152.95,0.17]
[1723096309888,45.0,153.05,152.94,0.17]
[1723096310052,45.0,153.05,152.94,0.34]
[1723096310584,45.0,153.05,152.94,45.34]
[1723096311482,389.1,153.06,152.94,83.45696561]
[1723096311650,389.1,153.06,152.95,20.0]
[1723096311850,389.1,153.06,152.96,0.34]
[1723096312065,389.1,153.06,152.94,0.17]
[1723096312066,1.63397482,153.05,152.94,0.17]
[1723096312275,1.63397482,153.05,152.93,6.1859]
[1723096312276,8.16777482,153.05,152.93,6.1859]
[1723096312853,45.17,153.04,152.93,6.1859]
[1723096313085,46.63397482,153.05,152.93,6.1859]
[1723096313379,20.0,153.04,152.93,6.1859]
[1723096313753,389.1,153.06,152.94,81.98]
[1723096314477,389.1,153.06,152.95,0.17]
[1723096314855,389.1,153.06,152.95,1.47687244]
[1723096315056,389.1,153.06,152.97,36.81]
[1723096315379,389.1,153.06,152.98,0.17]
[1723096315677,389.1,153.06,152.94,36.81]
[1723096315866,389.1,153.06,152.95,20.0]
[1723096316177,389.1,153.06,152.97,36.81]
[1723096316358,389.1,153.06,152.98,7.9071674]
[1723096316556,389.1,153.06,152.99,1.30678197]
[1723096316959,389.1,153.06,153.0,0.34]
[1723096317159,16.3882,153.1,153.0,0.34]
[1723096317356,20.0,153.09,153.0,0.34]
[1723096317573,1.6335502,153.08,153.0,0.34]
[1723096317772,1.6335502,153.08,152.99,0.34]
[1723096318886,20.0,153.09,152.99,0.34]
[1723096319578,1.63357899,153.08,152.99,0.34]
[1723096320089,20.0,153.09,152.99,0.34]
[1723096321660,21.6336407,153.09,152.98,6.6003]
[1723096321860,45.0,153.08,152.98,6.6003]
[1723096322077,45.0,153.08,152.98,7.90746142]
[1723096322294,45.0,153.08,152.98,6.6003]
[1723096322472,45.0,153.08,152.96,5.1431]
[1723096322675,21.97387865,153.07,152.96,5.1431]
[1723096322876,45.0,153.06,152.96,5.1431]
[1723096323073,21.9742825,153.05,152.96,5.1431]
[1723096323277,46.63428222,153.04,152.96,5.1431]
[1723096323670,405.4882,153.1,152.96,5.1431]
[1723096323874,65.17,153.09,152.96,5.1431]
[1723096324088,65.0,153.09,152.96,6.45011556]
[1723096324261,0.34,153.08,152.96,5.1431]
[1723096324461,1.6341139,153.07,152.96,5.1431]
[1723096324687,0.17,153.06,152.96,5.1431]
[1723096324877,1.6341139,153.07,152.96,5.1431]
[1723096324878,65.0,153.09,152.96,5.1431]
[1723096325083,65.0,153.09,152.97,0.34]
[1723096325283,66.63387422,153.09,152.97,0.34]
[1723096325491,73.16597422,153.09,152.97,0.34]
[1723096325795,405.4882,153.1,152.98,1.30710162]
[1723096325968,405.4882,153.1,152.99,0.34]
[1723096326168,405.4882,153.1,152.99,0.17]
[1723096326587,405.4882,153.1,152.98,1.4768414]
[1723096326801,16.1034,153.14,152.99,44.59154329]
[1723096327004,665.3317,153.18,153.02,36.81]
[1723096327179,665.3317,153.18,153.03,1.64642456]
[1723096327362,665.3317,153.18,153.03,45.34]
[1723096327363,1.63303115,153.17,153.03,45.34]
[1723096327792,30.35303115,153.17,153.05,28.72]
[1723096327969,28.72,153.17,153.06,0.34]
[1723096328169,36.88147072,153.17,153.05,28.72]
[1723096328380,28.72,153.17,153.06,0.34]
[1723096328668,36.88194704,153.17,153.06,0.34]
[1723096328882,6.5291,153.16,153.06,0.34]
[1723096329096,21.63309838,153.15,153.06,0.34]
[1723096329271,1.63309838,153.15,153.06,0.34]
[1723096329470,20.0,153.16,153.06,0.34]
[1723096329968,20.0,153.17,153.07,6.396]
[1723096330215,405.2034,153.18,153.08,0.17]
[1723096330495,405.2034,153.18,153.08,0.34]
[1723096330686,405.2034,153.18,153.07,6.396]
[1723096330892,405.2034,153.18,153.08,1.64616393]
[1723096331305,405.2034,153.18,153.08,0.34]
[1723096331467,405.2034,153.18,153.07,6.396]
[1723096331799,66.80274117,153.17,153.04,6.2388]
[1723096332103,66.97274117,153.17,153.04,6.2388]
[1723096332606,1.63327621,153.16,153.04,6.2388]
[1723096332792,6.5307,153.13,153.04,6.2388]
[1723096332973,65.0,153.12,153.04,6.2388]
[1723096333173,20.0,153.12,153.04,6.2388]
[1723096333907,45.0,153.11,153.04,6.2388]
[1723096334071,1.63356849,153.1,153.04,6.2388]
[1723096334269,1.63356849,153.1,153.0,11.6537]
[1723096334713,66.63356849,153.1,153.0,11.6537]
[1723096335587,6.5322,153.09,153.0,11.6537]
[1723096335909,65.17,153.08,153.0,11.6537]
[1723096336207,65.0,153.08,153.0,11.6537]
[1723096336778,1.63380989,153.07,153.0,11.6537]
[1723096336995,65.0,153.08,153.0,11.6537]
[1723096337306,16.5108,153.1,153.0,11.6537]
[1723096337485,20.0,153.09,153.0,11.6537]
[1723096337880,45.0,153.08,153.0,11.6537]
[1723096338079,45.17,153.08,153.0,11.6537]
[1723096338510,45.0,153.08,153.0,11.6537]
[1723096338803,20.0,153.09,153.0,11.6537]
[1723096339013,1.63362577,153.08,153.0,11.6537]
[1723096339314,1.63376312,153.07,153.0,11.6537]
[1723096339698,21.63387177,153.09,153.0,11.6537]
[1723096339999,45.0,153.08,153.0,11.6537]
[1723096340209,20.0,153.09,153.0,11.6537]
[1723096340510,21.63364122,153.09,153.0,11.6537]
[1723096340718,389.1,153.12,153.0,11.6537]
[1723096341010,6.532,153.1,153.0,11.6537]
[1723096341192,21.63387409,153.09,153.0,11.6537]
[1723096341393,66.63387409,153.09,153.0,11.6537]
[1723096341908,73.16607409,153.09,153.0,11.6537]
[1723096342115,66.63387409,153.09,153.0,11.6537]
[1723096342410,65.0,153.09,153.0,11.6537]
[1723096343097,389.1,153.12,153.01,0.34]
[1723096343299,21.63349934,153.11,153.01,0.34]
[1723096343610,389.1,153.12,153.01,0.34]
[1723096343984,389.1,153.12,153.02,36.92]
[1723096344219,389.1,153.12,153.03,45.34]
[1723096344393,389.1,153.12,153.04,6.6138]
[1723096344591,389.1,153.12,153.05,45.17]
[1723096344796,389.1,153.12,153.06,0.17]
[1723096345198,389.1,153.12,153.05,0.17]
[1723096345393,389.1,153.12,153.04,6.6138]
[1723096345621,6.53,153.14,153.04,6.6138]
[1723096345791,8.16337467,153.14,153.04,6.6138]
[1723096345990,1.80336405,153.15,153.04,6.6138]
[1723096346210,0.17,153.14,153.04,6.6138]
[1723096347716,65.0,153.15,153.04,6.6138]
[1723096348022,65.0,153.15,153.05,0.34]
[1723096348320,20.0,153.15,153.05,0.34]
[1723096349388,20.0,153.15,153.06,5.1431]
[1723096349592,20.0,153.15,153.04,6.6138]
[1723096350321,20.0,153.15,153.04,7.92036351]
[1723096351130,20.0,153.15,153.05,0.17]
[1723096351289,20.0,153.15,153.05,0.34]
[1723096351729,20.0,153.16,153.06,28.72]
[1723096352028,45.0,153.15,153.06,28.72]
[1723096352195,20.0,153.14,153.06,28.72]
[1723096352819,45.0,153.13,153.06,28.72]
[1723096353804,389.1,153.17,153.09,5.1431]
[1723096354127,15.0413,153.19,153.09,5.1431]
[1723096354333,15.0413,153.19,153.1,28.72]
[1723096354625,1.63270286,153.21,153.11,6.573]
[1723096355818,8.15970286,153.21,153.11,6.573]
[1723096356022,20.0,153.2,153.11,6.573]
[1723096356224,45.0,153.19,153.11,6.573]
[1723096357722,1.63261337,153.19,153.11,6.573]
[1723096358216,20.0,153.21,153.11,6.573]
[1723096358819,45.0,153.2,153.11,6.573]
[1723096359124,20.0,153.19,153.11,6.573]
[1723096362002,1.63245648,153.18,153.11,6.573]
[1723096362208,1.80288279,153.17,153.09,5.1431]
[1723096362404,21.80288279,153.17,153.09,5.1431]
[1723096362609,20.0,153.17,153.09,5.1431]
[1723096363329,411.35746594,153.23,153.09,5.1431]
[1723096363330,30.35276312,153.22,153.09,5.1431]
[1723096363507,65.34,153.21,153.09,5.1431]
[1723096363702,1.63260379,153.2,153.09,5.1431]
[1723096363934,1.63260379,153.2,153.1,0.17]
[1723096364629,8.16000379,153.2,153.1,0.17]
[1723096364802,65.0,153.19,153.1,0.17]
[1723096365002,45.0,153.19,153.1,0.17]
[1723096365229,20.0,153.18,153.1,0.17]
[1723096365640,20.0,153.18,153.09,5.1431]
[1723096365822,20.0,153.19,153.09,5.1431]
[1723096366001,45.0,153.18,153.09,5.1431]
[1723096367410,46.63266569,153.18,153.09,5.1431]
[1723096367635,46.63272395,153.18,153.09,5.1431]
[1723096367819,45.0,153.18,153.09,5.1431]
[1723096368009,46.63275061,153.18,153.09,5.1431]
[1723096368424,45.0,153.18,153.09,5.1431]
[1723096369112,45.0,153.18,153.1,28.72]
[1723096369308,389.1,153.22,153.12,28.72]
[1723096369625,389.1,153.22,153.16,28.72]
[1723096369834,389.1,153.26,153.18,28.72]
[1723096370138,15.4306,153.28,153.17,5.1431]
[1723096370309,6.5253,153.25,153.17,5.1431]
[1723096370519,1.63215092,153.24,153.17,5.1431]
[1723096370717,6.5249,153.26,153.17,5.1431]
[1723096370911,36.87634873,153.27,153.17,5.1431]
[1723096371128,20.0,153.26,153.17,5.1431]
[1723096371639,28.15701221,153.26,153.17,5.1431]
[1723096372019,45.34,153.25,153.17,5.1431]
[1723096372235,20.0,153.24,153.17,5.1431]
[1723096372936,45.0,153.25,153.17,5.1431]
[1723096373135,15.4306,153.28,153.17,5.1431]
[1723096373453,45.17,153.27,153.17,5.1431]
[1723096373749,15.4306,153.28,153.17,5.1431]
[1723096373948,15.4306,153.28,153.18,0.17]
[1723096374253,21.63173384,153.27,153.18,0.17]
[1723096375433,20.0,153.27,153.18,0.17]
[1723096375669,1.63172836,153.26,153.18,0.17]
[1723096376125,20.0,153.27,153.18,28.89]
[1723096376339,21.63161166,153.29,153.18,28.89]
[1723096376546,45.0,153.28,153.18,30.19536832]
[1723096376847,20.0,153.27,153.18,28.89]
[1723096377052,20.0,153.27,153.19,0.17]
[1723096377429,20.0,153.29,153.19,0.17]
[1723096377627,26.5237,153.29,153.19,0.17]
[1723096378031,20.0,153.29,153.19,0.17]
[1723096378431,45.0,153.28,153.18,28.89]
[1723096378628,28.15623433,153.27,153.18,28.89]
[1723096378934,20.0,153.27,153.18,28.89]
[1723096379343,45.0,153.26,153.18,28.72]
[1723096380351,46.63182626,153.26,153.17,5.1431]
[1723096380559,45.0,153.26,153.17,5.1431]
[1723096381746,20.0,153.27,153.18,0.17]
[1723096382055,20.0,153.28,153.18,0.17]
[1723096382366,45.0,153.27,153.18,0.17]
[1723096382735,20.0,153.26,153.18,28.89]
[1723096383531,1.63171651,153.29,153.19,6.4693]
[1723096383764,6.5218,153.34,153.22,28.72]
[1723096383940,6.5227,153.31,153.22,28.72]
[1723096384144,8.15370823,153.32,153.22,28.72]
[1723096384334,8.15370823,153.32,153.2,0.34]
[1723096384335,6.5229,153.31,153.2,29.06]
[1723096384854,8.15477149,153.3,153.2,28.72]
[1723096385049,45.0,153.29,153.2,28.72]
[1723096385247,0.34,153.31,153.2,28.72]
[1723096385456,71.8628,153.31,153.2,28.72]
[1723096385759,65.34,153.31,153.2,28.72]
[1723096386463,1.63147025,153.3,153.2,28.72]
[1723096386677,1.63155563,153.29,153.2,28.72]
[1723096387471,1.63155563,153.29,153.19,6.4693]
[1723096387472,30.35155563,153.29,153.19,6.4693]
[1723096387648,65.0,153.28,153.19,6.4693]
[1723096387960,28.72,153.33,153.22,28.72]
[1723096388177,65.0,153.32,153.22,28.72]
[1723096388354,65.0,153.32,153.23,5.1431]
[1723096389658,65.0,153.32,153.24,35.2403]
[1723096390065,2.65598517,153.35,153.24,36.54520167]
[1723096390241,2.65598517,153.35,153.26,28.72]
[1723096390443,15.5569,153.36,153.26,28.72]
[1723096390756,17.18791943,153.36,153.24,35.2403]
[1723096390953,23.70851943,153.36,153.24,35.2403]
[1723096391265,15.5569,153.36,153.26,28.72]
[1723096391654,20.0,153.35,153.26,28.72]
[1723096392473,20.0,153.35,153.24,35.2403]
[1723096392669,20.0,153.35,153.26,28.72]
[1723096393567,406.70324158,153.38,153.26,28.72]
[1723096393750,400.18344158,153.38,153.28,11.1494]
[1723096393954,253.6,153.41,153.32,28.72]
[1723096394170,253.6,153.41,153.33,0.17]
[1723096394467,1.63013119,153.4,153.32,28.72]
[1723096395374,1.63013119,153.4,153.3,28.72]
[1723096395573,1.80046512,153.41,153.3,28.72]
[1723096395762,8.31886512,153.41,153.3,28.72]
[1723096396151,6.6884,153.41,153.3,28.72]
[1723096396363,6.5189,153.4,153.3,28.72]
[1723096396665,45.0,153.39,153.3,28.72]
[1723096397471,45.0,153.4,153.3,28.72]
[1723096397774,46.97053531,153.41,153.3,28.72]
[1723096398278,53.48913531,153.41,153.3,28.72]
[1723096398485,0.17,153.4,153.3,28.72]
[1723096399457,46.80053531,153.41,153.3,28.72]
[1723096399860,45.17,153.41,153.3,28.72]
[1723096400175,46.63036034,153.41,153.31,0.34]
[1723096400567,46.63036034,153.41,153.32,28.72]
[1723096400874,45.0,153.41,153.32,28.72]
[1723096401275,389.1,153.42,153.32,28.72]
[1723096401579,389.1,153.42,153.34,28.72]
[1723096401873,0.8228107,153.43,153.34,28.72]
[1723096402486,0.8228107,153.43,153.36,28.72]
[1723096402662,0.8228107,153.43,153.37,1.30376212]
[1723096402862,0.8228107,153.43,153.36,28.72]
[1723096403750,2.45257783,153.43,153.35,11.7431]
[1723096403960,1.62989289,153.42,153.35,11.4031]
[1723096405667,45.8228107,153.43,153.35,11.4031]
[1723096406966,1.63012708,153.42,153.35,11.4031]
[1723096407291,45.8228107,153.43,153.35,11.4031]
[1723096407471,1.63012574,153.42,153.35,11.4031]
[1723096407871,28.72,153.4,153.31,11.4585]
[1723096408074,434.9228107,153.43,153.33,28.72]
[1723096408378,20.0,153.42,153.33,28.72]
[1723096408981,45.0,153.41,153.33,28.72]
[1723096409191,20.0,153.42,153.33,28.72]
[1723096409862,45.0,153.41,153.33,28.72]
[1723096410260,20.0,153.42,153.33,28.72]
[1723096410468,389.9228107,153.43,153.35,28.72]
[1723096411957,1.6298416,153.42,153.31,40.1785]
[1723096412157,6.5184,153.41,153.31,11.4585]
[1723096412362,28.72,153.38,153.27,11.3963]
[1723096412573,1.80080272,153.37,153.27,11.3963]
[1723096412771,46.80080272,153.37,153.27,11.3963]
[1723096413090,35.2406,153.36,153.27,11.3963]
[1723096413312,66.97110604,153.35,153.27,11.3963]
[1723096415083,66.97110604,153.35,153.27,6.2532]
[1723096415788,66.97110604,153.35,153.23,40.0346]
[1723096416090,66.97110604,153.35,153.24,0.17]
[1723096417589,66.97110604,153.35,153.25,28.72]
[1723096418889,66.97110604,153.35,153.23,28.72]
[1723096418890,52.49385005,153.34,153.23,28.72]
[1723096419063,45.34,153.33,153.21,28.72]
[1723096419960,50.35134306,153.32,153.21,28.72]
[1723096420159,45.34,153.31,153.21,28.72]
[1723096420361,1.63153323,153.3,153.21,28.72]
[1723096420572,48.72,153.32,153.21,28.72]
[1723096420860,1.63153323,153.31,153.21,28.72]
[1723096421067,50.35152254,153.32,153.21,28.72]
[1723096421284,21.63138423,153.32,153.22,0.34]
[1723096421477,20.0,153.33,153.23,28.72]
[1723096421675,22.1427,153.34,153.23,28.72]
[1723096421874,22.1427,153.34,153.25,28.72]
[1723096422066,22.1427,153.34,153.23,28.72]
[1723096422394,8.15294891,153.33,153.21,28.72]
[1723096422565,55.2423,153.32,153.21,28.72]
[1723096422771,1.63152405,153.31,153.21,28.72]
[1723096422995,1.63152405,153.31,153.19,39.9135]
[1723096423202,0.17,153.3,153.19,39.9135]
[1723096423500,30.52152369,153.3,153.19,28.72]
[1723096423674,65.17,153.29,153.19,28.72]
[1723096423989,1.80181826,153.28,153.19,28.72]
[1723096424170,0.17,153.28,153.19,28.72]
[1723096425193,45.0,153.29,153.21,28.72]
[1723096425506,45.0,153.29,153.18,0.34]
[1723096425507,22.1427,153.34,153.25,28.72]
[1723096425679,1.6311456,153.33,153.25,28.72]
[1723096425879,22.1427,153.34,153.27,28.72]
[1723096426078,1.6308522,153.33,153.27,28.72]
[1723096426602,22.1427,153.34,153.27,28.72]
[1723096426789,1.63108268,153.33,153.27,28.72]
[1723096427103,23.77378319,153.34,153.27,28.72]
[1723096427310,1.6309839,153.33,153.27,28.72]
[1723096427806,22.1427,153.34,153.27,28.72]
[1723096428387,22.6346,153.38,153.29,28.72]
[1723096428583,22.6346,153.38,153.31,28.72]
[1723096430295,16.4782,153.38,153.32,1.30428223]
[1723096431895,16.4782,153.38,153.31,28.72]
[1723096432300,16.4782,153.38,153.29,28.72]
[1723096433289,16.4782,153.38,153.31,28.72]
[1723096435815,45.0,153.37,153.29,28.72]
[1723096435993,395.6771,153.42,153.33,28.72]
[1723096435994,412.0152,153.42,153.33,28.72]
[1723096436206,16.3381,153.42,153.34,1.30412024]
[1723096436391,16.3381,153.42,153.36,28.72]
[1723096437592,16.3381,153.42,153.33,0.34]
[1723096437593,16.3381,153.42,153.34,28.72]
[1723096438614,1.63000852,153.41,153.34,28.72]
[1723096438908,1.63000852,153.41,153.32,28.72]
[1723096439212,46.63000852,153.41,153.32,28.72]
[1723096439388,53.14860852,153.41,153.3,28.72]
[1723096439718,0.17,153.4,153.3,28.72]
[1723096439914,0.34,153.4,153.3,28.72]
[1723096440420,6.2495,153.39,153.3,28.72]
[1723096440615,45.0,153.38,153.3,28.72]
[1723096441026,45.0,153.38,153.28,28.72]
[1723096441200,6.2495,153.39,153.28,28.72]
[1723096441396,6.2495,153.39,153.3,28.72]
[1723096441721,6.2495,153.39,153.27,36.8]
[1723096442295,45.0,153.38,153.28,0.34]
[1723096445203,15.8859,153.37,153.25,20.0]
[1723096445410,45.0,153.36,153.25,20.0]
[1723096445618,1.63083274,153.35,153.24,48.004]
[1723096446513,45.0,153.36,153.24,48.004]
[1723096446915,45.0,153.36,153.25,0.34]
[1723096450528,45.0,153.36,153.21,6.80596325]
[1723096450529,6.1929,153.34,153.21,43.60596325]
[1723096450726,45.0,153.33,153.22,20.0]
[1723096451601,45.0,153.33,153.23,0.34]
[1723096451801,15.1399,153.31,153.23,0.34]
[1723096451997,1.63109305,153.3,153.21,43.60596325]
[1723096452218,15.1399,153.31,153.18,36.8]
[1723096452526,6.6654,153.29,153.18,36.8]
[1723096452718,45.0,153.28,153.19,6.80916778]
[1723096452922,6.6654,153.29,153.18,36.8]
[1723096453250,8.29694713,153.29,153.18,36.8]
[1723096453526,8.29694713,153.29,153.16,6.80969174]
[1723096453527,45.17,153.28,153.16,6.80969174]
[1723096454403,45.17,153.28,153.17,0.17]
[1723096454404,45.0,153.28,153.17,0.17]
[1723096454622,6.6654,153.29,153.18,36.8]
[1723096454834,6.6654,153.29,153.19,46.64499763]
[1723096455033,6.6654,153.29,153.19,45.34]
[1723096455242,6.6654,153.29,153.21,36.8]
[1723096455445,6.6654,153.29,153.22,45.34]
[1723096455620,6.6654,153.29,153.24,36.8]
[1723096456839,6.6654,153.29,153.24,38.10475958]
[1723096457419,6.6654,153.29,153.22,0.34]
[1723096457818,6.6654,153.29,153.22,45.34]
[1723096458026,6.6654,153.29,153.22,0.34]
[1723096458322,6.6654,153.29,153.23,0.17]
[1723096458536,6.6654,153.29,153.23,1.30439256]
[1723096458842,6.6654,153.29,153.22,0.34]
[1723096459224,6.6654,153.29,153.22,45.34]
[1723096461028,15.1399,153.31,153.22,45.34]
[1723096461235,15.1399,153.31,153.23,21.30362211]
[1723096461438,15.1399,153.31,153.24,45.34]
[1723096461827,15.1399,153.31,153.28,28.64]
[1723096464727,15.1399,153.31,153.26,28.64]
[1723096465551,15.1399,153.31,153.24,28.64]
[1723096466734,1.63123959,153.3,153.22,28.64]
[1723096466933,1.63133415,153.29,153.22,28.64]
[1723096467139,15.1399,153.31,153.22,28.64]
[1723096467450,45.0,153.3,153.22,28.64]
[1723096468430,8.44959725,153.29,153.2,28.64]
[1723096468632,61.6489,153.28,153.16,28.64]
[1723096468949,22.954,153.26,153.16,28.64]
[1723096469153,1.63194504,153.25,153.16,28.64]
[1723096469361,46.63194504,153.25,153.16,28.64]
[1723096470146,45.0,153.25,153.16,28.64]
[1723096470331,22.954,153.26,153.16,28.64]
[1723096470540,22.954,153.26,153.18,28.64]
[1723096471255,22.954,153.26,153.18,29.94450784]
[1723096471447,22.954,153.26,153.2,28.64]
[1723096471836,22.954,153.26,153.17,0.34]
[1723096472036,22.954,153.26,153.18,0.34]
[1723096472448,22.954,153.26,153.18,0.17]
[1723096472743,22.954,153.26,153.17,0.34]
[1723096473653,22.954,153.26,153.17,45.34]
[1723096474037,22.954,153.26,153.17,46.64505465]
[1723096474257,22.954,153.26,153.17,45.34]
[1723096475743,22.954,153.26,153.16,36.86]
[1723096476246,45.0,153.25,153.14,6.81218191]
[1723096476455,45.17,153.25,153.14,6.81218191]
[1723096476960,16.3119,153.24,153.14,6.81218191]
[1723096478956,1.63209069,153.23,153.14,6.81218191]
[1723096479277,6.2602,153.22,153.14,6.81218191]
[1723096479451,6.2602,153.22,153.15,0.34]
[1723096479650,6.2602,153.22,153.14,6.81218191]
[1723096480072,6.2602,153.22,153.15,1.643959]
[1723096480566,6.2602,153.22,153.14,6.81218191]
[1723096481556,7.89226016,153.22,153.14,6.81218191]
[1723096482461,15.0238,153.21,153.08,36.86]
[1723096482653,15.0238,153.21,153.09,0.17]
[1723096482654,1.63232552,153.2,153.09,0.17]
[1723096482971,1.63232552,153.2,153.11,6.81484445]
[1723096483279,1.63233413,153.19,153.11,6.81484445]
[1723096483441,21.06,153.18,153.04,50.89733747]
[1723096483645,46.63277696,153.17,153.08,6.81644417]
[1723096483848,46.63277696,153.17,153.04,39.51413747]
[1723096484140,16.1787,153.15,153.07,6.81634938]
[1723096484345,1.63289758,153.14,153.04,36.86]
[1723096484757,6.2744,153.13,153.05,6.81693994]
[1723096484963,1.63317756,153.12,153.05,6.81693994]
[1723096485859,1.63317756,153.12,153.01,36.86]
[1723096486185,15.0219,153.11,153.02,26.81461127]
[1723096486859,15.0219,153.11,153.02,28.12115806]
[1723096487375,15.0219,153.11,153.04,36.86]
[1723096487577,15.0219,153.11,153.05,21.64628116]
[1723096487780,15.0219,153.11,153.02,6.81461127]
[1723096488083,1.6332746,153.1,153.03,0.17]
[1723096488306,1.6332746,153.1,153.03,0.34]
[1723096488451,1.63329599,153.09,153.02,6.81461127]
[1723096488775,1.63329599,153.09,152.95,19.3928202]
[1723096488776,15.1018,153.08,152.98,2.65005814]
[1723096488974,15.1018,153.08,152.98,6.81446239]
[1723096489350,45.0,153.07,152.98,6.81446239]
[1723096489857,6.4641,153.06,152.98,6.81446239]
[1723096490058,6.4641,153.06,152.96,36.86]
[1723096490262,8.09791643,153.06,152.96,43.67424612]
[1723096490579,16.76703929,153.05,152.96,43.67424612]
[1723096490881,15.1332,153.05,152.96,36.86]
[1723096491577,15.3581,153.02,152.9,0.8228107]
[1723096491779,15.3581,153.02,152.9,37.6828107]
[1723096491780,1.63438108,153.01,152.9,37.6828107]
[1723096491967,1.63438108,153.01,152.91,6.80704532]
[1723096492683,15.3581,153.02,152.91,6.80704532]
[1723096492894,15.3581,153.02,152.93,36.86]
[1723096493396,15.3581,153.02,152.94,45.34]
[1723096493789,15.3581,153.02,152.94,0.34]
[1723096494168,15.3581,153.02,152.94,45.34]
[1723096494570,15.3581,153.02,152.91,6.80704532]
[1723096494895,15.3581,153.02,152.92,20.0]
[1723096495668,15.3581,153.02,152.91,43.66704532]
[1723096497290,22.2377,153.07,153.0,36.86]
[1723096497494,22.2377,153.07,152.97,36.86]
[1723096498791,22.2377,153.07,152.98,20.0]
[1723096500475,22.2377,153.07,152.99,0.34]
[1723096500991,22.2377,153.07,152.98,20.0]
[1723096501191,22.2377,153.07,152.97,20.17]
[1723096501397,22.2377,153.07,152.98,0.17]
[1723096501693,22.2377,153.07,152.99,36.86]
[1723096501866,22.2377,153.07,153.0,20.34]
[1723096502976,22.2377,153.07,153.01,45.0]
[1723096503176,22.2377,153.07,153.02,0.17]
[1723096503366,22.2377,153.07,153.0,20.17]
[1723096504493,22.2377,153.07,153.02,36.86]
[1723096504792,21.3867,153.12,153.05,36.86]
[1723096504999,21.3867,153.12,153.04,36.86]
[1723096505000,15.3073,153.12,153.09,36.86]
[1723096505172,15.3073,153.12,153.1,0.34]
[1723096505369,15.3073,153.12,153.1,0.17]
[1723096505582,15.3073,153.12,153.04,36.86]
[1723096505784,15.3073,153.12,153.05,65.0]
[1723096505991,6.0846,153.16,153.06,0.17]
[1723096506304,6.0846,153.16,153.11,36.86]
[1723096506492,6.0846,153.16,153.12,65.34]
[1723096506674,6.0846,153.16,153.12,20.0]
[1723096506879,6.0846,153.16,153.11,36.86]
[1723096507080,6.0846,153.16,153.08,36.86]
[1723096507398,6.0846,153.16,153.09,20.34]
[1723096508596,15.5313,153.17,153.11,36.86]
[1723096508787,6.2531,153.2,153.14,36.86]
[1723096508993,6.2531,153.2,153.15,65.34]
[1723096509184,16.4478,153.21,153.17,36.86]
[1723096509380,16.4478,153.21,153.18,1.30524087]